[Event "Late-Titled-Tuesday-Blitz-December-26-2023"]
[Site "Chess.com"]
[Date "2023.12.26"]
[Round "9"]
[White "ilushka"]
[Black "Aguiar94"]
[Result "1-0"]
[WhiteElo "2457"]
[BlackElo "2548"]
[TimeControl "180+1"]
[EndTime "15:43:42 PST"]
[Termination "ilushka won on time"]

1. e4 {[%clk 0:03:00.9]} 1... c5 {[%clk 0:02:20.8]} 2. Nf3 {[%clk 0:03:01]} 2...
e6 {[%clk 0:02:19.8]} 3. c4 {[%clk 0:02:59.4]} 3... Nc6 {[%clk 0:02:19.1]} 4.
Nc3 {[%clk 0:02:59.3]} 4... Nd4 {[%clk 0:02:16.2]} 5. d3 {[%clk 0:02:57.4]} 5...
Ne7 {[%clk 0:02:15]} 6. Nxd4 {[%clk 0:02:56.2]} 6... cxd4 {[%clk 0:02:15.9]} 7.
Ne2 {[%clk 0:02:56.5]} 7... Nc6 {[%clk 0:02:16.1]} 8. f4 {[%clk 0:02:54.1]} 8...
g6 {[%clk 0:02:13.7]} 9. g3 {[%clk 0:02:53.7]} 9... Bg7 {[%clk 0:02:13.2]} 10.
Bg2 {[%clk 0:02:54]} 10... f5 {[%clk 0:02:13.1]} 11. e5 {[%clk 0:02:50]} 11...
d6 {[%clk 0:02:12.8]} 12. exd6 {[%clk 0:02:49.9]} 12... O-O {[%clk 0:02:11.2]}
13. O-O {[%clk 0:02:43.8]} 13... Qxd6 {[%clk 0:02:08]} 14. a3 {[%clk 0:02:37.1]}
14... a5 {[%clk 0:02:07.2]} 15. Qa4 {[%clk 0:02:31.9]} 15... Bd7 {[%clk
0:02:05.5]} 16. Qb5 {[%clk 0:02:28.5]} 16... Nb4 {[%clk 0:01:58.5]} 17. Qxb7
{[%clk 0:02:23.9]} 17... Rab8 {[%clk 0:01:31.6]} 18. Qa7 {[%clk 0:02:21.7]}
18... Nxd3 {[%clk 0:01:28.5]} 19. Qxa5 {[%clk 0:02:02.5]} 19... Rfc8 {[%clk
0:01:25.2]} 20. Qd2 {[%clk 0:01:51.3]} 20... Nc5 {[%clk 0:01:20.8]} 21. Rb1
{[%clk 0:01:36.4]} 21... Nb3 {[%clk 0:01:02.3]} 22. Qd1 {[%clk 0:01:35.5]} 22...
Rxc4 {[%clk 0:00:56]} 23. Rf3 {[%clk 0:01:26.5]} 23... Bc6 {[%clk 0:00:49.6]}
24. Rxb3 {[%clk 0:01:24.7]} 24... Rxb3 {[%clk 0:00:48.1]} 25. Qxb3 {[%clk
0:01:25.6]} 25... Bxg2 {[%clk 0:00:48.6]} 26. Qxc4 {[%clk 0:01:17.7]} 26... Bd5
{[%clk 0:00:45]} 27. Qc8+ {[%clk 0:01:14.2]} 27... Kf7 {[%clk 0:00:39.1]} 28.
Bd2 {[%clk 0:01:13.1]} 28... d3 {[%clk 0:00:28.5]} 29. Rc1 {[%clk 0:01:05.5]}
29... Qb6+ {[%clk 0:00:21.7]} 30. Qc5 {[%clk 0:00:46.7]} 30... Qxc5+ {[%clk
0:00:20.3]} 31. Rxc5 {[%clk 0:00:45.8]} 31... dxe2 {[%clk 0:00:21.2]} 32. Rc7+
{[%clk 0:00:40.8]} 32... Kg8 {[%clk 0:00:20.9]} 33. Kf2 {[%clk 0:00:35.1]} 33...
Bxb2 {[%clk 0:00:17.3]} 34. Bb4 {[%clk 0:00:18.9]} 34... Bd4+ {[%clk 0:00:12.2]}
35. Kxe2 {[%clk 0:00:18.7]} 35... Bg1 {[%clk 0:00:12.2]} 36. Rc2 {[%clk
0:00:15.4]} 36... Be4 {[%clk 0:00:08.4]} 37. Ra2 {[%clk 0:00:14.8]} 37... Bd5
{[%clk 0:00:07.8]} 38. Ra1 {[%clk 0:00:14.7]} 38... Bd4 {[%clk 0:00:06.7]} 39.
Rd1 {[%clk 0:00:13.4]} 39... Bb6 {[%clk 0:00:01.2]} 40. a4 {[%clk 0:00:12.3]}
1-0

[Event "Late-Titled-Tuesday-Blitz-December-26-2023"]
[Site "Chess.com"]
[Date "2023.12.26"]
[Round "9"]
[White "Hikaru"]
[Black "frederiksvane"]
[Result "1-0"]
[WhiteElo "3222"]
[BlackElo "2969"]
[TimeControl "180+1"]
[EndTime "15:43:44 PST"]
[Termination "Hikaru won by resignation"]

1. e4 {[%clk 0:03:00.9]} 1... e5 {[%clk 0:03:00.4]} 2. Bc4 {[%clk 0:03:00.7]}
2... Nf6 {[%clk 0:02:58.9]} 3. d3 {[%clk 0:03:01.1]} 3... Nc6 {[%clk 0:02:59.3]}
4. Nc3 {[%clk 0:03:01.2]} 4... Na5 {[%clk 0:02:59]} 5. Qf3 {[%clk 0:03:00.9]}
5... d6 {[%clk 0:02:56.6]} 6. Nge2 {[%clk 0:03:00.7]} 6... Be7 {[%clk
0:02:56.9]} 7. Ng3 {[%clk 0:02:56.6]} 7... Bg4 {[%clk 0:02:50.3]} 8. Qe3 {[%clk
0:02:56.4]} 8... Qd7 {[%clk 0:02:42.8]} 9. h3 {[%clk 0:02:44.9]} 9... Nxc4
{[%clk 0:02:42.3]} 10. dxc4 {[%clk 0:02:45]} 10... Be6 {[%clk 0:02:42.8]} 11. b3
{[%clk 0:02:45.7]} 11... h5 {[%clk 0:02:31.7]} 12. a4 {[%clk 0:02:35.3]} 12...
h4 {[%clk 0:02:30.4]} 13. Nge2 {[%clk 0:02:34.3]} 13... c6 {[%clk 0:02:26.8]}
14. O-O {[%clk 0:02:32.5]} 14... g5 {[%clk 0:01:55.9]} 15. f3 {[%clk 0:02:00.4]}
15... Nh5 {[%clk 0:01:56.1]} 16. Nd1 {[%clk 0:02:00.2]} 16... Nf4 {[%clk
0:01:54.8]} 17. Nf2 {[%clk 0:02:00.3]} 17... O-O {[%clk 0:01:50.1]} 18. Nxf4
{[%clk 0:01:54]} 18... gxf4 {[%clk 0:01:47.4]} 19. Qe2 {[%clk 0:01:54.2]} 19...
f5 {[%clk 0:01:44]} 20. Ba3 {[%clk 0:01:53.4]} 20... fxe4 {[%clk 0:01:32.1]} 21.
Nxe4 {[%clk 0:01:53.9]} 21... c5 {[%clk 0:00:58.1]} 22. Rad1 {[%clk 0:01:52.1]}
22... Qc6 {[%clk 0:00:54.8]} 23. Rd2 {[%clk 0:01:52]} 23... Bf5 {[%clk
0:00:50.7]} 24. Nc3 {[%clk 0:01:51.9]} 24... Rf7 {[%clk 0:00:47.2]} 25. Nd5
{[%clk 0:01:30.6]} 25... Bg5 {[%clk 0:00:47.2]} 26. Rfd1 {[%clk 0:01:28.6]}
26... Re8 {[%clk 0:00:47.2]} 27. Nc3 {[%clk 0:01:27.1]} 27... Re6 {[%clk
0:00:41.6]} 28. Rd5 {[%clk 0:01:25]} 28... Rg6 {[%clk 0:00:34.7]} 29. Ne4 {[%clk
0:01:14]} 29... Be7 {[%clk 0:00:35]} 30. Nf2 {[%clk 0:01:14.6]} 30... Be6 {[%clk
0:00:30.8]} 31. R5d2 {[%clk 0:01:05.9]} 31... a5 {[%clk 0:00:30.4]} 32. Ng4
{[%clk 0:01:04]} 32... b6 {[%clk 0:00:29]} 33. Re1 {[%clk 0:01:03.9]} 33... Bf5
{[%clk 0:00:27.5]} 34. Bb2 {[%clk 0:00:59.9]} 34... Bf8 {[%clk 0:00:22.9]} 35.
Kh2 {[%clk 0:00:58.5]} 35... Qe8 {[%clk 0:00:19.9]} 36. Bc3 {[%clk 0:00:56.5]}
36... Qe7 {[%clk 0:00:19.7]} 37. Qf2 {[%clk 0:00:53.3]} 37... Rh7 {[%clk
0:00:18.9]} 38. Ree2 {[%clk 0:00:52.3]} 38... Qe8 {[%clk 0:00:18.4]} 39. Rd1
{[%clk 0:00:52.2]} 39... Re6 {[%clk 0:00:18.1]} 40. Be1 {[%clk 0:00:52.3]} 40...
Qe7 {[%clk 0:00:17.4]} 41. Qf1 {[%clk 0:00:51.8]} 41... Qg5 {[%clk 0:00:17.1]}
42. Bf2 {[%clk 0:00:51]} 42... Qg6 {[%clk 0:00:12.3]} 43. Rdd2 {[%clk
0:00:48.8]} 43... e4 {[%clk 0:00:10.4]} 44. fxe4 {[%clk 0:00:44.2]} 44... Bxg4
{[%clk 0:00:10.9]} 45. hxg4 {[%clk 0:00:45.1]} 45... Qxg4 {[%clk 0:00:11.7]} 46.
Rd3 {[%clk 0:00:45.8]} 46... h3 {[%clk 0:00:09.9]} 47. gxh3 {[%clk 0:00:42.6]}
47... f3 {[%clk 0:00:09.7]} 48. Ree3 {[%clk 0:00:43.1]} 48... Rf6 {[%clk
0:00:06.2]} 49. Bg3 {[%clk 0:00:39.1]} 49... f2 {[%clk 0:00:03.1]} 50. Bxf2
{[%clk 0:00:34]} 50... Qf4+ {[%clk 0:00:03.7]} 51. Rg3+ {[%clk 0:00:33]} 51...
Kh8 {[%clk 0:00:03.6]} 52. Rf3 {[%clk 0:00:29.5]} 52... Qxf3 {[%clk 0:00:04.2]}
53. Rxf3 {[%clk 0:00:30.1]} 53... Rxf3 {[%clk 0:00:05.1]} 54. Bd4+ {[%clk
0:00:30.5]} 1-0

[Event "Late-Titled-Tuesday-Blitz-December-26-2023"]
[Site "Chess.com"]
[Date "2023.12.26"]
[Round "9"]
[White "Jospem"]
[Black "Szparu"]
[Result "1-0"]
[WhiteElo "3076"]
[BlackElo "2903"]
[TimeControl "180+1"]
[EndTime "15:43:45 PST"]
[Termination "Jospem won on time"]

1. e4 {[%clk 0:03:00.9]} 1... e6 {[%clk 0:02:59]} 2. d4 {[%clk 0:03:01.5]} 2...
d5 {[%clk 0:02:58.1]} 3. Nd2 {[%clk 0:03:02.3]} 3... Be7 {[%clk 0:02:58.3]} 4.
Ngf3 {[%clk 0:03:02.9]} 4... Nf6 {[%clk 0:02:59]} 5. e5 {[%clk 0:03:03.6]} 5...
Nfd7 {[%clk 0:02:59.6]} 6. Bd3 {[%clk 0:03:04.5]} 6... c5 {[%clk 0:03:00.1]} 7.
c3 {[%clk 0:03:05.2]} 7... Nc6 {[%clk 0:03:00.8]} 8. O-O {[%clk 0:03:05.7]} 8...
a5 {[%clk 0:03:00.1]} 9. a4 {[%clk 0:03:06.2]} 9... cxd4 {[%clk 0:03:00.1]} 10.
cxd4 {[%clk 0:03:07.1]} 10... Nb4 {[%clk 0:03:00.3]} 11. Bb5 {[%clk 0:03:07.8]}
11... O-O {[%clk 0:02:59.3]} 12. Nb1 {[%clk 0:03:03]} 12... Nb6 {[%clk
0:02:57.5]} 13. Nc3 {[%clk 0:03:01.6]} 13... Bd7 {[%clk 0:02:57.3]} 14. b3
{[%clk 0:02:52.7]} 14... Rc8 {[%clk 0:02:56.7]} 15. Bd2 {[%clk 0:02:52.1]} 15...
Na8 {[%clk 0:02:38.3]} 16. g3 {[%clk 0:02:31.3]} 16... Nc7 {[%clk 0:02:37.4]}
17. h4 {[%clk 0:02:29.3]} 17... Nxb5 {[%clk 0:02:35.3]} 18. axb5 {[%clk
0:02:30.2]} 18... Qb6 {[%clk 0:02:33.7]} 19. h5 {[%clk 0:02:21.4]} 19... Bxb5
{[%clk 0:02:29.7]} 20. Nxb5 {[%clk 0:02:22.3]} 20... Qxb5 {[%clk 0:02:30]} 21.
h6 {[%clk 0:02:23.2]} 21... g6 {[%clk 0:02:30.5]} 22. Bg5 {[%clk 0:02:09.1]}
22... Nc6 {[%clk 0:02:02.7]} 23. Kg2 {[%clk 0:01:54.1]} 23... Bxg5 {[%clk
0:01:53]} 24. Nxg5 {[%clk 0:01:55]} 24... Qb4 {[%clk 0:01:53.7]} 25. Ra4 {[%clk
0:01:42.2]} 25... Qe7 {[%clk 0:01:53.7]} 26. Nf3 {[%clk 0:01:34.8]} 26... b5
{[%clk 0:01:54.2]} 27. Ra1 {[%clk 0:01:31.8]} 27... Rc7 {[%clk 0:01:49.7]} 28.
Re1 {[%clk 0:01:31.6]} 28... Rfc8 {[%clk 0:01:44.8]} 29. Qe2 {[%clk 0:01:30.7]}
29... Qf8 {[%clk 0:01:44.4]} 30. Rh1 {[%clk 0:01:28.5]} 30... Rb7 {[%clk
0:01:36.6]} 31. Qe3 {[%clk 0:01:22.8]} 31... Ra8 {[%clk 0:01:33.2]} 32. Nh2
{[%clk 0:01:20.3]} 32... a4 {[%clk 0:01:27.1]} 33. Ng4 {[%clk 0:01:18.1]} 33...
a3 {[%clk 0:01:22.9]} 34. Rhc1 {[%clk 0:01:16.5]} 34... Rc8 {[%clk 0:00:55]} 35.
b4 {[%clk 0:01:08]} 35... Qxb4 {[%clk 0:00:49.6]} 36. Rxa3 {[%clk 0:01:04.4]}
36... Rbc7 {[%clk 0:00:38]} 37. Rac3 {[%clk 0:01:04.2]} 37... Qe7 {[%clk
0:00:32]} 38. Qf4 {[%clk 0:00:58]} 38... b4 {[%clk 0:00:27.6]} 39. Rf3 {[%clk
0:00:58.1]} 39... Nd8 {[%clk 0:00:15.1]} 40. Nf6+ {[%clk 0:00:51.3]} 40... Kh8
{[%clk 0:00:15.3]} 41. Rb1 {[%clk 0:00:46.4]} 41... Rc3 {[%clk 0:00:15.3]} 42.
Ng4 {[%clk 0:00:33]} 42... Rxf3 {[%clk 0:00:15.4]} 43. Qxf3 {[%clk 0:00:33.9]}
43... Rc3 {[%clk 0:00:15.6]} 44. Qf4 {[%clk 0:00:33]} 44... b3 {[%clk
0:00:12.7]} 45. Qd2 {[%clk 0:00:28.8]} 45... Qc7 {[%clk 0:00:10.9]} 46. Qg5
{[%clk 0:00:26.7]} 46... Kg8 {[%clk 0:00:04]} 47. Nf6+ {[%clk 0:00:23.5]} 47...
Kf8 {[%clk 0:00:03]} 48. Nxh7+ {[%clk 0:00:24]} 48... Kg8 {[%clk 0:00:02.7]} 49.
Nf6+ {[%clk 0:00:24.7]} 49... Kh8 {[%clk 0:00:02.4]} 50. Ne8 {[%clk 0:00:24.9]}
50... Qd7 {[%clk 0:00:02.2]} 51. Qf6+ {[%clk 0:00:25]} 1-0

[Event "Late-Titled-Tuesday-Blitz-December-26-2023"]
[Site "Chess.com"]
[Date "2023.12.26"]
[Round "9"]
[White "IranianCheetah"]
[Black "zsoltkorpics"]
[Result "0-1"]
[WhiteElo "2360"]
[BlackElo "2510"]
[TimeControl "180+1"]
[EndTime "15:43:46 PST"]
[Termination "zsoltkorpics won on time"]

1. e4 {[%clk 0:02:55.6]} 1... c5 {[%clk 0:02:59.6]} 2. Nf3 {[%clk 0:02:55.3]}
2... e6 {[%clk 0:02:59.4]} 3. d4 {[%clk 0:02:54.8]} 3... cxd4 {[%clk 0:03:00.1]}
4. Nxd4 {[%clk 0:02:55.7]} 4... Nc6 {[%clk 0:03:00.8]} 5. Nc3 {[%clk 0:02:55.8]}
5... Qc7 {[%clk 0:03:00.6]} 6. Be3 {[%clk 0:02:54.7]} 6... a6 {[%clk 0:03:00.7]}
7. a3 {[%clk 0:02:54.3]} 7... Nf6 {[%clk 0:03:00.4]} 8. g4 {[%clk 0:02:48]} 8...
h6 {[%clk 0:02:56]} 9. Bg2 {[%clk 0:02:44.6]} 9... Ne5 {[%clk 0:02:53.8]} 10. h3
{[%clk 0:02:35.7]} 10... Nc4 {[%clk 0:02:52.9]} 11. Bc1 {[%clk 0:02:34.1]} 11...
Rb8 {[%clk 0:02:28.9]} 12. O-O {[%clk 0:02:30.5]} 12... b5 {[%clk 0:02:27.4]}
13. Nde2 {[%clk 0:02:16]} 13... Bb7 {[%clk 0:02:22.4]} 14. b3 {[%clk 0:02:14.6]}
14... Nb6 {[%clk 0:02:13.7]} 15. Bb2 {[%clk 0:02:02.1]} 15... Bd6 {[%clk
0:01:56.6]} 16. f4 {[%clk 0:01:54.8]} 16... Bc5+ {[%clk 0:01:55.3]} 17. Kh1
{[%clk 0:01:53.7]} 17... h5 {[%clk 0:01:51.9]} 18. g5 {[%clk 0:01:51.5]} 18...
Ng4 {[%clk 0:01:48.8]} 19. Qc1 {[%clk 0:00:50.6]} 19... Ne3 {[%clk 0:01:37.5]}
20. Re1 {[%clk 0:00:39.6]} 20... Nxg2 {[%clk 0:01:37]} 21. Kxg2 {[%clk
0:00:38.9]} 21... f5 {[%clk 0:01:37.9]} 22. gxf6 {[%clk 0:00:25.4]} 22... gxf6
{[%clk 0:01:37.3]} 23. Kh2 {[%clk 0:00:14.5]} 23... Kf7 {[%clk 0:01:26.1]} 24.
b4 {[%clk 0:00:14]} 24... Be7 {[%clk 0:01:21.9]} 25. Qe3 {[%clk 0:00:13.6]}
25... Nc4 {[%clk 0:01:21.2]} 26. Qc1 {[%clk 0:00:12.9]} 26... Bd6 {[%clk
0:01:17.9]} 27. Rf1 {[%clk 0:00:12.4]} 27... Rhg8 {[%clk 0:01:15.6]} 28. Rb1
{[%clk 0:00:12.4]} 28... Rg7 {[%clk 0:01:09]} 29. Qe1 {[%clk 0:00:12.2]} 29...
Rbg8 {[%clk 0:01:08]} 30. Rf2 {[%clk 0:00:12.1]} 30... Ne3 {[%clk 0:01:03.7]}
31. Bc1 {[%clk 0:00:11.3]} 31... Ng2 {[%clk 0:00:36.6]} 32. Qd2 {[%clk
0:00:10.7]} 32... f5 {[%clk 0:00:36]} 33. e5 {[%clk 0:00:07.6]} 33... Be7 {[%clk
0:00:35.7]} 34. Qd3 {[%clk 0:00:06.8]} 34... Nh4 {[%clk 0:00:35.4]} 35. Be3
{[%clk 0:00:06.4]} 35... Rg2+ {[%clk 0:00:33]} 36. Rxg2 {[%clk 0:00:06.9]} 36...
Rxg2+ {[%clk 0:00:32.9]} 37. Kh1 {[%clk 0:00:07.1]} 37... Rxe2+ {[%clk
0:00:30.5]} 38. Kg1 {[%clk 0:00:06.9]} 38... Nf3+ {[%clk 0:00:23.7]} 39. Kf1
{[%clk 0:00:06.5]} 39... Rh2 {[%clk 0:00:24.2]} 40. Bg1 {[%clk 0:00:01.7]} 40...
Rh1 {[%clk 0:00:23.1]} 41. Ne2 {[%clk 0:00:01.5]} 41... Qc6 {[%clk 0:00:19.7]}
0-1

[Event "Late-Titled-Tuesday-Blitz-December-26-2023"]
[Site "Chess.com"]
[Date "2023.12.26"]
[Round "9"]
[White "slidingknight2775"]
[Black "Nf3c5"]
[Result "0-1"]
[WhiteElo "2668"]
[BlackElo "2523"]
[TimeControl "180+1"]
[EndTime "15:43:53 PST"]
[Termination "Nf3c5 won by checkmate"]

1. Nf3 {[%clk 0:03:00.9]} 1... d5 {[%clk 0:02:59.4]} 2. g3 {[%clk 0:03:00.9]}
2... c6 {[%clk 0:02:58.6]} 3. c4 {[%clk 0:03:00.4]} 3... Nf6 {[%clk 0:02:58.5]}
4. Bg2 {[%clk 0:03:00.3]} 4... Bg4 {[%clk 0:02:57]} 5. Ne5 {[%clk 0:02:59.9]}
5... Be6 {[%clk 0:02:56]} 6. cxd5 {[%clk 0:02:59.9]} 6... Bxd5 {[%clk
0:02:56.2]} 7. Nf3 {[%clk 0:03:00.2]} 7... c5 {[%clk 0:02:54.6]} 8. Nc3 {[%clk
0:03:00.5]} 8... Bc6 {[%clk 0:02:54.9]} 9. O-O {[%clk 0:03:01]} 9... e6 {[%clk
0:02:48.6]} 10. Re1 {[%clk 0:03:00.8]} 10... Be7 {[%clk 0:02:44.6]} 11. e4
{[%clk 0:02:59.2]} 11... O-O {[%clk 0:02:43.6]} 12. d4 {[%clk 0:02:59.1]} 12...
cxd4 {[%clk 0:02:39.8]} 13. Nxd4 {[%clk 0:03:00]} 13... Qb6 {[%clk 0:02:39.6]}
14. Nxc6 {[%clk 0:02:22.8]} 14... Nxc6 {[%clk 0:02:35.4]} 15. e5 {[%clk
0:02:21.1]} 15... Rfd8 {[%clk 0:02:32.4]} 16. Qa4 {[%clk 0:02:13.1]} 16... Nd7
{[%clk 0:02:31.8]} 17. Bxc6 {[%clk 0:01:55.6]} 17... bxc6 {[%clk 0:02:25.6]} 18.
Be3 {[%clk 0:01:45.7]} 18... Qxb2 {[%clk 0:02:21.9]} 19. Bd4 {[%clk 0:00:39.8]}
19... Qb4 {[%clk 0:02:07.9]} 20. Qxb4 {[%clk 0:00:33.4]} 20... Bxb4 {[%clk
0:02:07.3]} 21. Rec1 {[%clk 0:00:34.3]} 21... c5 {[%clk 0:02:05.8]} 22. Be3
{[%clk 0:00:32.4]} 22... Nxe5 {[%clk 0:02:04.5]} 23. Ne4 {[%clk 0:00:31.4]}
23... Nd3 {[%clk 0:01:59]} 24. Rc4 {[%clk 0:00:27.9]} 24... Ne5 {[%clk
0:01:47.9]} 25. Rcc1 {[%clk 0:00:26.2]} 25... Ba3 {[%clk 0:01:41.6]} 26. Rc2
{[%clk 0:00:22.5]} 26... Rac8 {[%clk 0:01:29.8]} 27. Kg2 {[%clk 0:00:19.3]}
27... c4 {[%clk 0:01:26.9]} 28. Bxa7 {[%clk 0:00:19.1]} 28... f5 {[%clk
0:01:25.1]} 29. Nc3 {[%clk 0:00:17.8]} 29... Nd3 {[%clk 0:01:22]} 30. Be3 {[%clk
0:00:16.7]} 30... Nb4 {[%clk 0:01:21.4]} 31. Re2 {[%clk 0:00:16.5]} 31... Nd5
{[%clk 0:01:17.8]} 32. Bd4 {[%clk 0:00:12.2]} 32... Nf4+ {[%clk 0:01:15.3]} 33.
gxf4 {[%clk 0:00:12.1]} 33... Rxd4 {[%clk 0:01:16]} 34. Nb5 {[%clk 0:00:12.2]}
34... Rd3 {[%clk 0:01:13.5]} 35. Nxa3 {[%clk 0:00:12.5]} 35... Rxa3 {[%clk
0:01:14.4]} 36. Rxe6 {[%clk 0:00:12.8]} 36... c3 {[%clk 0:01:15]} 37. Re3 {[%clk
0:00:11.8]} 37... Rc4 {[%clk 0:01:03.1]} 38. Kg3 {[%clk 0:00:09.4]} 38... Raa4
{[%clk 0:01:03.3]} 39. h3 {[%clk 0:00:06.2]} 39... c2 {[%clk 0:01:02]} 40. Ree1
{[%clk 0:00:04]} 40... Rxf4 {[%clk 0:01:01.3]} 41. Rac1 {[%clk 0:00:04.1]} 41...
Rfc4 {[%clk 0:00:59.8]} 42. Ra1 {[%clk 0:00:03.6]} 42... Ra3+ {[%clk 0:00:58.9]}
43. Kg2 {[%clk 0:00:04.1]} 43... Rcc3 {[%clk 0:00:57.2]} 44. Rec1 {[%clk
0:00:04.7]} 44... Kf7 {[%clk 0:00:55.6]} 45. h4 {[%clk 0:00:04.9]} 45... Kg6
{[%clk 0:00:55.6]} 46. Rh1 {[%clk 0:00:03.5]} 46... Kh5 {[%clk 0:00:55.7]} 47.
Rhc1 {[%clk 0:00:03]} 47... h6 {[%clk 0:00:54.6]} 48. Rh1 {[%clk 0:00:03.3]}
48... g6 {[%clk 0:00:54.3]} 49. Rhc1 {[%clk 0:00:03.2]} 49... Kxh4 {[%clk
0:00:54.2]} 50. Rh1+ {[%clk 0:00:03.8]} 50... Kg5 {[%clk 0:00:54.6]} 51. Rhc1
{[%clk 0:00:04.5]} 51... h5 {[%clk 0:00:55.1]} 52. Rh1 {[%clk 0:00:04.7]} 52...
h4 {[%clk 0:00:55.4]} 53. Rhc1 {[%clk 0:00:05.5]} 53... Kf4 {[%clk 0:00:55.5]}
54. Rh1 {[%clk 0:00:05.7]} 54... g5 {[%clk 0:00:56.4]} 55. Rhc1 {[%clk
0:00:06.2]} 55... g4 {[%clk 0:00:57]} 56. Rh1 {[%clk 0:00:06.7]} 56... h3+
{[%clk 0:00:57.9]} 57. Kh2 {[%clk 0:00:07.5]} 57... Kf3 {[%clk 0:00:54.3]} 58.
Rhc1 {[%clk 0:00:07.6]} 58... f4 {[%clk 0:00:47]} 59. Kg1 {[%clk 0:00:07.7]}
59... g3 {[%clk 0:00:46.4]} 60. Rf1 {[%clk 0:00:08.1]} 60... h2+ {[%clk
0:00:44]} 61. Kh1 {[%clk 0:00:08.7]} 61... g2+ {[%clk 0:00:44.6]} 62. Kxh2
{[%clk 0:00:09.6]} 62... gxf1=Q {[%clk 0:00:45.5]} 63. Rxf1 {[%clk 0:00:10.5]}
63... c1=Q {[%clk 0:00:46.2]} 64. Rxc1 {[%clk 0:00:10.2]} 64... Rxc1 {[%clk
0:00:47.1]} 65. Kh3 {[%clk 0:00:08.8]} 65... Rh1# {[%clk 0:00:47.6]} 0-1

[Event "Late-Titled-Tuesday-Blitz-December-26-2023"]
[Site "Chess.com"]
[Date "2023.12.26"]
[Round "9"]
[White "giomar27"]
[Black "Felix-Rose"]
[Result "0-1"]
[WhiteElo "2383"]
[BlackElo "2251"]
[TimeControl "180+1"]
[EndTime "15:43:53 PST"]
[Termination "Felix-Rose won by resignation"]

1. d4 {[%clk 0:03:00.9]} 1... d5 {[%clk 0:02:56.6]} 2. Nf3 {[%clk 0:02:57.6]}
2... Nf6 {[%clk 0:02:56.6]} 3. Bg5 {[%clk 0:02:57.8]} 3... Ne4 {[%clk
0:02:53.9]} 4. Bf4 {[%clk 0:02:56.6]} 4... c5 {[%clk 0:02:53.5]} 5. e3 {[%clk
0:02:53.6]} 5... Nc6 {[%clk 0:02:53.2]} 6. c3 {[%clk 0:02:53.3]} 6... Qb6 {[%clk
0:02:51]} 7. Qb3 {[%clk 0:02:51.4]} 7... c4 {[%clk 0:02:50.6]} 8. Qc2 {[%clk
0:02:49.9]} 8... Bf5 {[%clk 0:02:48.1]} 9. Qc1 {[%clk 0:02:50]} 9... h6 {[%clk
0:02:43.9]} 10. Nbd2 {[%clk 0:02:49.5]} 10... e6 {[%clk 0:02:43.5]} 11. Nxe4
{[%clk 0:02:48.3]} 11... Bxe4 {[%clk 0:02:43.7]} 12. Nd2 {[%clk 0:02:48.3]}
12... Bh7 {[%clk 0:02:43.5]} 13. b3 {[%clk 0:02:48.3]} 13... cxb3 {[%clk
0:02:39.1]} 14. axb3 {[%clk 0:02:48.3]} 14... Be7 {[%clk 0:02:38.9]} 15. Be2
{[%clk 0:02:46.6]} 15... O-O {[%clk 0:02:39.1]} 16. O-O {[%clk 0:02:46.6]} 16...
Rfc8 {[%clk 0:02:39.8]} 17. Qb2 {[%clk 0:02:33.1]} 17... a5 {[%clk 0:02:35.6]}
18. c4 {[%clk 0:02:25.8]} 18... dxc4 {[%clk 0:02:23.7]} 19. Nxc4 {[%clk
0:02:25.1]} 19... Qd8 {[%clk 0:02:19.5]} 20. Rfc1 {[%clk 0:02:17]} 20... Nb4
{[%clk 0:02:03.2]} 21. Nxa5 {[%clk 0:01:41.4]} 21... Rxc1+ {[%clk 0:01:57.7]}
22. Qxc1 {[%clk 0:01:40.8]} 22... Rxa5 {[%clk 0:01:42.7]} 23. Rxa5 {[%clk
0:01:39.3]} 23... Qxa5 {[%clk 0:01:43.6]} 24. Qc8+ {[%clk 0:01:38.9]} 24... Qd8
{[%clk 0:01:43.1]} 25. Qxb7 {[%clk 0:01:38.6]} 25... Bd3 {[%clk 0:01:35.6]} 26.
Bf3 {[%clk 0:01:30.5]} 26... Ba6 {[%clk 0:01:26.2]} 27. Qa7 {[%clk 0:01:25]}
27... Qc8 {[%clk 0:01:15.8]} 28. h3 {[%clk 0:01:21.5]} 28... Bf8 {[%clk
0:01:14.5]} 29. Kh2 {[%clk 0:01:13.7]} 29... Nd5 {[%clk 0:01:03.2]} 30. Bg3
{[%clk 0:01:10.5]} 30... Qb7 {[%clk 0:00:59.8]} 31. Qxb7 {[%clk 0:01:06.1]}
31... Bxb7 {[%clk 0:01:00.7]} 32. Kg1 {[%clk 0:01:05.1]} 32... Bb4 {[%clk
0:00:59.1]} 33. Kf1 {[%clk 0:01:04.4]} 33... Ba6+ {[%clk 0:00:58]} 34. Kg1
{[%clk 0:01:04]} 34... Bd3 {[%clk 0:00:58.2]} 35. Bd1 {[%clk 0:01:00.7]} 35...
Nc3 {[%clk 0:00:58.4]} 36. Bf3 {[%clk 0:01:00.6]} 36... Bc2 {[%clk 0:00:57.9]}
37. Be5 {[%clk 0:00:55.1]} 37... Bxb3 {[%clk 0:00:55.6]} 38. Bg3 {[%clk
0:00:54.6]} 38... Bd5 {[%clk 0:00:54.9]} 39. Bg4 {[%clk 0:00:52.2]} 39... g6
{[%clk 0:00:50.9]} 40. h4 {[%clk 0:00:50.9]} 40... h5 {[%clk 0:00:49.9]} 41. Bh3
{[%clk 0:00:51.1]} 41... Ne2+ {[%clk 0:00:48.8]} 42. Kh2 {[%clk 0:00:51.8]}
42... Nxg3 {[%clk 0:00:49.1]} 43. Kxg3 {[%clk 0:00:52.7]} 43... Bd6+ {[%clk
0:00:48.8]} 44. f4 {[%clk 0:00:52.4]} 44... Bb4 {[%clk 0:00:47.9]} 45. Kf2
{[%clk 0:00:52.5]} 45... Bc4 {[%clk 0:00:45.9]} 46. g3 {[%clk 0:00:52.7]} 46...
Kg7 {[%clk 0:00:44.2]} 47. Bg2 {[%clk 0:00:52.8]} 47... Kf6 {[%clk 0:00:40]} 48.
Be4 {[%clk 0:00:53.4]} 48... Bd5 {[%clk 0:00:39.3]} 49. Bd3 {[%clk 0:00:53.2]}
49... Bb7 {[%clk 0:00:37.6]} 50. Bc4 {[%clk 0:00:52.4]} 50... Bc3 {[%clk
0:00:37.2]} 51. Bd3 {[%clk 0:00:52.4]} 51... Bd5 {[%clk 0:00:37.3]} 52. Bc2
{[%clk 0:00:51.6]} 52... Bc6 {[%clk 0:00:34.9]} 53. Ke2 {[%clk 0:00:51.8]} 53...
Bb5+ {[%clk 0:00:33.2]} 54. Kf3 {[%clk 0:00:51.8]} 54... Be8 {[%clk 0:00:32.3]}
55. Be4 {[%clk 0:00:50.3]} 55... Be1 {[%clk 0:00:32.5]} 56. Bb7 {[%clk
0:00:48.4]} 56... Ke7 {[%clk 0:00:31.5]} 57. Be4 {[%clk 0:00:47.1]} 57... Kd6
{[%clk 0:00:31.8]} 58. Bd3 {[%clk 0:00:47.3]} 58... Bc6+ {[%clk 0:00:30.2]} 59.
e4 {[%clk 0:00:47]} 59... f5 {[%clk 0:00:30.5]} 60. Ke3 {[%clk 0:00:42]} 60...
Bxg3 {[%clk 0:00:29]} 61. e5+ {[%clk 0:00:42.4]} 61... Ke7 {[%clk 0:00:27.7]}
62. Ba6 {[%clk 0:00:36.6]} 62... Bxh4 {[%clk 0:00:27.6]} 0-1